lending/lending_fUSD_20240512
["ID","MTS","AMOUNT","RATE_DAILY","PERIOD"]
[326840665,1715502632617,-161.53737916,0.00012374,2]
[326840666,1715502632626,-200.0,0.000125,2]
[326840668,1715502632636,-252.19620887,0.00012636,2]
[326840670,1715502632646,-161.53737916,0.00012637,2]
[326840671,1715502632655,-3502.08126514,0.00012767,2]
[326840672,1715502632665,-1562.45443903,0.00012791,2]
[326840673,1715502632674,-2872.8686,0.000128,2]
[326840674,1715502632684,-150.0,0.00012807,2]
[326840675,1715502632693,-150.0,0.00012839,2]
[326840676,1715502632704,-320.0,0.00012849,2]
[326840677,1715502632715,-21001.63700991,0.00012868,2]
[326840678,1715502632728,-1813.56644117,0.00012868,2]
[326840679,1715502632740,-2354.54657073,0.0001287,2]
[326840680,1715502632757,-2710.90272,0.0001287,2]
[326840681,1715502632794,-4048.13730011,0.0001287,2]
[326840682,1715502632808,-832.30458365,0.0001287,2]
[326840694,1715502638234,-319.8,0.0001287,2]
[326840698,1715502638309,-1719.18418832,0.0001287,2]
[326840699,1715502638319,-1508.90985,0.0001287,2]
[326840700,1715502638328,-200.0,0.00012895,2]
[326840701,1715502638338,-1000.0,0.00012895,2]
[326840702,1715502638347,-500.0,0.00012895,2]
[326840703,1715502638357,-200.0,0.00012896,2]
[326840704,1715502638366,-1000.0,0.00012896,2]
[326840705,1715502638376,-200.0,0.00012896,2]
[326840706,1715502638390,-500.0,0.00012896,2]
[326840707,1715502638400,-474.6405,0.00012898,2]
[326840708,1715502638409,-1243.4204,0.00012899,2]
[326840709,1715502638419,-841.8204,0.00012899,2]
[326840710,1715502638428,-500.0,0.00012899,2]
[326840711,1715502638438,-1806.4799,0.000129,2]
[326840712,1715502638447,-18010.8002,0.000129,2]
[326840713,1715502638456,-1000.0,0.000129,2]
[326840714,1715502638465,-170.35592763,0.000129,2]
[326840715,1715502638475,-3751.52086228,0.000129,3]
[326840716,1715502638488,-2478.4641583,0.000129,3]
[326840717,1715502638504,-418.90641497,0.000129,3]
[326840718,1715502638549,-523.78823262,0.000129,3]
[326840719,1715502638576,-21549.79680951,0.000129,3]
[326840720,1715502638586,-7848.38424228,0.000129,2]
[326840721,1715502640468,-5304.14763119,0.000129,2]
[326840722,1715502640480,-343.32126171,0.000129,2]
[326840723,1715502640491,-153.19217043,0.000129,2]
[326840724,1715502640500,-161.53737916,0.000129,2]
[326840725,1715502640510,-28853.6251408,0.00012945,2]
[326840726,1715502640522,-9000.9345576,0.00012945,2]
[326840727,1715502640533,-160.1831748,0.00012998,2]
[326840728,1715502640543,-331.05492681,0.00012998,2]
[326840729,1715502640553,-441.68283259,0.00012998,2]
[326840730,1715502640562,-209.75708374,0.00012998,2]
[326840731,1715502640572,-324.59422712,0.00012998,2]
[326840732,1715502640582,-534.10085754,0.00012998,2]
[326840733,1715502640592,-155.92064256,0.00012998,2]
[326840734,1715502640602,-1243.91978297,0.00012998,2]
[326840735,1715502640612,-217.09655827,0.00012999,2]
[326840736,1715502640622,-208.11144529,0.00012999,2]
[326840737,1715502640632,-971.60546264,0.00012999,2]
[326840738,1715502640642,-1925.71421194,0.00012999,2]
[326840739,1715502640652,-634.45495329,0.00013,2]
[326840740,1715502640672,-33.54504671,0.00013,2]
[326840741,1715502640682,-1178.60451329,0.00013,2]
[326840742,1715502640697,-590.46,0.00013,2]
[326840743,1715502640714,-1506.69611468,0.00013,2]
[326840744,1715502640727,-6198.571081,0.00013,2]
[326840745,1715502640740,-416.57582921,0.00013,2]
[326840747,1715502640751,-310.52466767,0.00013,2]
[326840749,1715502640763,-504.36232548,0.00013,2]
[326840751,1715502640774,-439.54636968,0.00013,2]
[326840758,1715502640832,-671.80019193,0.00013,2]
[326840760,1715502640844,-2348.65200493,0.00013,2]
[326840790,1715502643472,-440.28488619,0.00013,2]
[326840791,1715502643575,-1440.69721868,0.00013,2]
[326840792,1715502643587,-403.23600652,0.00013,2]
[326840793,1715502643603,-1458.8003077,0.00013,2]
[326840794,1715502643614,-446.85738612,0.00013,2]
[326840795,1715502643694,-309.11557089,0.00013,2]
[326840796,1715502643705,-1181.18,0.00013,2]
[326840797,1715502643728,-353.20175428,0.00013,2]
[326840798,1715502643746,-4686.86,0.00013,2]
[326840799,1715502643840,-29488.85865458,0.00013,2]
[326840802,1715502646340,-704.53185956,0.00013,2]
[326840803,1715502646429,-1700.41,0.00013,2]
[326840804,1715502646586,-5690.27723437,0.00011396,2]
[326840805,1715502646603,-613.45017766,0.00011396,2]
[326840948,1715502960305,242.85321981,0.000101,2]
[326840954,1715503007570,548.23639354,0.000101,2]
[326840957,1715503025564,551.02509715,0.000101,2]
[326840958,1715503027501,1157.8852895,0.000101,2]
[326840979,1715503810377,-155.0,9.977e-05,2]
[326840980,1715503810399,-45.0,9.978e-05,2]
[326840989,1715503831427,-253.92241788,9.976e-05,2]
[326840991,1715503831439,-950.83963609,9.976e-05,2]
[326840993,1715503831449,-3087.54678534,9.977e-05,2]
[326840994,1715503831458,-455.0,9.978e-05,2]
[326840995,1715503831467,-155.0,0.0001,2]
[326840996,1715503831477,-22938.60585734,0.000101,2]
[326840997,1715503831582,-504.89456906,0.000101,2]
[326840998,1715503831592,-173.38287842,0.000101,2]
[326840999,1715503831601,-148.02122918,0.0001126,2]
[326841000,1715503831647,-1.97877082,0.0001126,2]
[326841001,1715503831656,-200.85276572,0.00011396,2]
[326841002,1715503831666,-302.55461925,0.00011396,2]
[326841003,1715503831687,-158.92021853,0.00011396,2]
[326841004,1715503831696,-947.37500242,0.00011396,2]
[326841005,1715503831705,-180.17241562,0.00011396,2]
[326841006,1715503831715,-409.65794166,0.00011396,2]
[326841007,1715503831725,-7512.30824501,0.00011396,2]
[326841008,1715503831734,-250.0,0.00011598,2]
[326841009,1715503831743,-783.85573975,0.00011625,2]
[326841010,1715503831755,-36.62426025,0.00011625,2]
[326841011,1715503831766,-1763.37573975,0.00011644,2]
[326841014,1715503831782,-1290.90309334,0.00011644,2]
[326841016,1715503831793,-341.48088377,0.00011644,2]
[326841018,1715503831804,-1567.03507088,0.00011644,2]
[326841022,1715503832134,-454.25461509,0.00011644,2]
[326841023,1715503832150,-1015.83173565,0.00011644,2]
[326841024,1715503832176,-833.79793316,0.00011644,2]
[326841025,1715503832189,-318.86689986,0.00011644,2]
[326841026,1715503832200,-11653.0382456,0.00011644,2]
[326841027,1715503832212,-659.47,0.00011644,2]
[326841028,1715503832224,-4001.9457829,0.00011644,2]
[326841029,1715503832234,-250.0,0.00011718,2]
[326841030,1715503832244,-5606.68383718,0.00011718,2]
[326841042,1715503837675,-1342.62616282,0.00011718,2]
[326841043,1715503837684,-314.82,0.00011718,2]
[326841044,1715503837694,-5343.22,0.00011827,2]
[326841045,1715503837703,-343.62,0.00011861,2]
[326841046,1715503837713,-168.0,0.00012032,2]
[326841047,1715503837722,-1000.0,0.00012138,2]
[326841048,1715503837731,-499.99,0.00012194,2]
[326841049,1715503837739,-299.99,0.00012401,2]
[326841050,1715503837748,-252.19620887,0.000125,2]
[326841051,1715503837758,-1008.0,0.000127,2]
[326841052,1715503837767,-1000.0,0.000127,2]
[326841053,1715503837776,-343.3212617,0.00012795,2]
[326841054,1715503837785,-155.0,0.00012879,2]
[326841055,1715503837794,-8745.18932511,0.0001288,2]
[326841072,1715503839984,-290.88492463,0.0001288,2]
[326841127,1715503842930,-769.61865015,0.0001288,2]
[326841128,1715503842942,-1381.05676272,0.0001288,2]
[326841129,1715503842959,-5164.64713317,0.0001288,2]
[326841147,1715503845946,-1626.91038052,0.00012879,2]
[326841169,1715505031702,-2326.76401065,9.786e-05,2]
[326841170,1715505031712,-155.0,9.786e-05,2]
[326841171,1715505031721,-321.21490997,9.787e-05,2]
[326841172,1715505031730,-237.10219524,9.787e-05,2]
[326841173,1715505031739,-4998.53329431,9.787e-05,2]
[326841174,1715505031750,-1718.08654569,9.787e-05,2]
[326841175,1715505031760,-405.63530923,9.788e-05,2]
[326841176,1715505031769,-155.0,9.788e-05,2]
[326841177,1715505031778,-522.28932815,9.788e-05,2]
[326841178,1715505031788,-8362.96245245,9.788e-05,2]
[326841179,1715505031798,-364.05066238,9.789e-05,2]
[326841180,1715505031808,-370.82893179,9.789e-05,2]
[326841181,1715505031817,-150.0,9.794e-05,2]
[326841182,1715505031826,-85842.38625752,0.000101,2]
[326841183,1715505031835,-328.10148095,0.000101,2]
[326841184,1715505031845,-210.0,0.00010773,2]
[326841185,1715505031854,-250.0,0.00011592,2]
[326841186,1715505031863,-546.31,0.00011592,2]
[326841187,1715505031872,-250.0,0.00011645,2]
[326841188,1715505031882,-168.0,0.00011674,2]
[326841189,1715505031892,-23900.0,0.0001169,2]
[326841190,1715505031901,-192.0,0.00011857,2]
[326841191,1715505031911,-1000.0,0.00011999,2]
[326841192,1715505031920,-11456.67376325,0.00012,2]
[326841193,1715505031930,-1000.0,0.0001278,2]
[326841194,1715505031939,-254.08049618,0.00012868,2]
[326841195,1715505031949,-561.58976072,0.00012872,2]
[326841196,1715505031958,-1361.74157649,0.00012878,2]
[326841197,1715505031967,-180.80691939,0.00012878,2]
[326841198,1715505031977,-157.96855427,0.00012878,2]
[326841199,1715505031986,-408.44946759,0.00012878,2]
[326841200,1715505031995,-494.81201246,0.00012878,2]
[326841201,1715505032005,-1977.10848534,0.00012878,2]
[326841202,1715505032014,-255.45209943,0.00012878,2]
[326841203,1715505032025,-495.98178989,0.00012878,2]
[326841204,1715505032033,-155.0,0.00012878,2]
[326841205,1715505032043,-155.0,0.00012878,2]
[326841206,1715505032052,-162.41965931,0.00012878,2]
[326841207,1715505032061,-811.52822234,0.00012878,2]
[326841208,1715505032072,-156.41396986,0.00012878,2]
[326841209,1715505032082,-3076.41458232,0.00012878,2]
[326841210,1715505032092,-316.7534337,0.00012878,2]
[326841211,1715505032101,-427.03437959,0.00012878,2]
[326841212,1715505032110,-284.55884765,0.00012878,2]
[326841213,1715505032119,-304.44817289,0.00012878,2]
[326841214,1715505032128,-537.03498854,0.00012878,2]
[326841215,1715505032137,-155.0,0.00012878,2]
[326841216,1715505032146,-840.95391263,0.00012878,2]
[326841217,1715505032155,-1454.54434616,0.00012879,2]
[326841218,1715505032164,-463392.14959688,0.0001288,2]
[326841219,1715505032173,-2000.0,0.0001288,2]
[326841220,1715505032187,-200.0,0.0001288,2]
[326841221,1715505032197,-1757.42487,0.0001288,2]
[326841222,1715505032206,-200.0,0.0001288,2]
[326841223,1715505032215,-779.44,0.00012893,2]
[326841224,1715505032224,-1116.51,0.00012893,2]
[326841225,1715505032233,-3400.55,0.00012893,2]
[326841226,1715505032243,-857.39,0.00012893,2]
[326841227,1715505032253,-500.0,0.00012895,2]
[326841228,1715505032262,-200.0,0.00012896,2]
[326841229,1715505032273,-200.0,0.00012896,2]
[326841230,1715505032282,-500.0,0.00012896,2]
[326841231,1715505032291,-199.5173089,0.000129,5]
[326841232,1715505032300,-12017.85079114,0.000129,2]
[326841233,1715505033215,-393.9,0.000129,2]
[326841234,1715505033233,-430.19938027,0.000129,2]
[326841235,1715505033242,-1443.15373314,0.000129,2]
[326841236,1715505033251,-722.72737314,0.000129,2]
[326841237,1715505033264,-1.48603414,0.000129,2]
[326841238,1715505033273,-153.19217043,0.000129,2]
[326841239,1715505033282,-1037.6580345,0.000129,2]
[326841240,1715505033303,-4799.4,0.000129,2]
[326841241,1715505033314,-4744.20461661,0.000129,2]
[326841242,1715505033326,-219.17157983,0.000129,2]
[326841243,1715505033335,-219.17157977,0.000129,2]
[326841244,1715505033344,-1015.71749823,0.00012996,2]
[326841245,1715505033355,-2737.79082027,0.00012996,2]
[326841246,1715505033364,-4876.640616,0.00012996,2]
[326841247,1715505033377,-421.94837902,0.00012998,2]
[326841248,1715505033387,-788.94409382,0.00012998,2]
[326841249,1715505033396,-2120.41880483,0.00012998,2]
[326841250,1715505033405,-155.0,0.00012998,2]
[326841251,1715505033416,-249.32809512,0.00012998,2]
[326841252,1715505033425,-379.88806869,0.00012998,2]
[326841253,1715505033435,-1028.35265875,0.00012998,2]
[326841254,1715505033444,-275.76936592,0.00012998,2]
[326841255,1715505033454,-512.43176782,0.00012998,2]
[326841256,1715505033463,-157.35733175,0.00012998,2]
[326841257,1715505033472,-2502.25415751,0.00012999,2]
[326841258,1715505033482,-150.01,0.00012999,2]
[326841259,1715505033491,-4725.79731875,0.00012999,3]
[326841260,1715505033500,-552.0,0.00013,2]
[326841261,1715505033509,-328393.95973316,0.00013,2]
[326841262,1715505033530,-6429.90132334,0.00013,2]
[326841263,1715505033614,-613.94061065,0.00013,2]
[326841264,1715505033626,-3572.57654287,0.00013,2]
[326841265,1715505033637,-2288.564954,0.00013,2]
[326841266,1715505033648,-16429.28753765,0.00013,2]
[326841267,1715505033660,-633.19553415,0.00013,2]
[326841268,1715505033671,-2001.76069057,0.00013,2]
[326841269,1715505033694,-1629.76586371,0.00013,2]
[326841282,1715505037776,-155.0,9.785e-05,2]
[326841283,1715505037788,-95.88068151,0.00012622,2]
[326841284,1715505037808,-3406.20058363,0.00012622,2]
[326841285,1715505037818,-1562.45443903,0.00012628,2]
[326841286,1715505037828,-219.17157977,0.000129,2]
[326841287,1715505037837,-25902.43971341,0.00013,2]
[326841288,1715505037849,-3285.175,0.00013,2]
[326841289,1715505037920,-6775.96856293,0.00013,2]
[326841290,1715505037932,-2920.82435328,0.00013,2]
[326841291,1715505037943,-7103.53077201,0.00013,2]
[326841292,1715505037969,-819.04563211,0.00013,2]
[326841293,1715505038002,-14234.99887379,0.00013,2]
[326841294,1715505038041,-1614.2,0.00013,2]
[326841310,1715505039888,-523.392,0.00013,2]
[326841311,1715505040020,-24705.10457809,0.00013,2]
[326841312,1715505040030,-5141.34931469,0.00013,2]
[326841313,1715505040041,-455.34,0.00013,2]
[326841314,1715505040052,-9142.38341367,0.00013,2]
[326841315,1715505040082,-6550.58244479,0.00013,2]
[326841316,1715505040092,-16646.38220867,0.00013,2]
[326841317,1715505040370,-3239.71161728,0.00013,2]
[326841318,1715505040382,-880.188012,0.00013,2]
[326841319,1715505040410,-11590.4789,0.00013,2]
[326841320,1715505040426,-579.45888,0.00013,2]
[326841321,1715505040438,-683.33006705,0.00013,2]
[326841329,1715505042846,-219.17157977,0.000129,2]
[326841330,1715505042856,-360.17842023,0.00012999,2]
[326841331,1715505042924,-2000.3676924,0.00012999,2]
[326841332,1715505042933,-237.10219524,0.00012999,2]
[326841333,1715505042943,-900.13012231,0.00013,2]
[326841334,1715505043050,-316440.29576478,0.00013,2]
[326841335,1715505043061,-121852.77116942,0.00013,2]
[326841336,1715505043070,-761171.61432565,0.00013,2]
[326841584,1715505045766,-183.14401397,0.00012899,2]
[326841585,1715505045775,-370.82893179,0.00012899,2]
[326841586,1715505045785,-140.60805425,0.00013,2]
[326841587,1715505046011,-219.17157977,0.000129,2]
[326841588,1715505046020,-364.05066238,0.00012999,2]
[326841589,1715505046030,-136.73574544,0.00013,2]
[326841590,1715505046041,-337.08969517,0.00013,2]
[326841593,1715505047078,-246692.2162336,0.00013,2]
[326841594,1715505047093,-31549.23154386,0.00013,2]
[326841601,1715506231868,-155.0,8.983e-05,2]
[326841602,1715506231878,-405.63530923,8.984e-05,2]
[326841603,1715506231890,-642.95246665,8.985e-05,2]
[326841604,1715506231900,-155.0,8.986e-05,2]
[326841606,1715506231910,-206.42432911,8.986e-05,2]
[326841607,1715506231922,-315.86499904,8.986e-05,2]
[326841608,1715506231940,-150.0,8.986e-05,2]
[326841609,1715506231958,-150.0,8.986e-05,2]
[326841610,1715506231977,-8362.96245245,8.987e-05,2]
[326841611,1715506231991,-3546.8763027,8.988e-05,2]
[326841612,1715506232000,-12754.27076683,8.99e-05,2]
[326841613,1715506232009,-6488.17492636,9.088e-05,2]
[326841614,1715506232018,-169.13,9.095e-05,2]
[326841615,1715506232027,-5597.1832,9.141e-05,2]
[326841616,1715506232036,-5597.1832,9.141e-05,2]
[326841617,1715506232047,-5597.1832,9.141e-05,2]
[326841618,1715506232055,-5597.1832,9.141e-05,2]
[326841619,1715506232065,-5597.1832,9.141e-05,2]
[326841620,1715506232075,-539.63258044,9.145e-05,2]
[326841621,1715506232084,-499.99,9.67e-05,2]
[326841622,1715506232093,-1000.0,0.00011308,2]
[326841623,1715506232102,-7939.16,0.00011313,2]
[326841624,1715506232111,-153.6,0.0001136,2]
[326841625,1715506232121,-23900.0,0.0001142,2]
[326841626,1715506232130,-363.53,0.00011427,2]
[326841627,1715506232138,-150.0,0.00011427,2]
[326841628,1715506232148,-250.0,0.0001143,2]
[326841629,1715506232157,-250.0,0.0001145,2]
[326841630,1715506232166,-182.0,0.00011452,2]
[326841631,1715506232176,-285.90804803,0.00011698,2]
[326841632,1715506232185,-156.90148724,0.00011698,2]
[326841633,1715506232195,-299.99,0.00011698,2]
[326841634,1715506232205,-2019.38,0.00011709,2]
[326841635,1715506232215,-2019.38,0.00011712,2]
[326841636,1715506232225,-2019.38,0.00011715,2]
[326841637,1715506232235,-2019.38,0.00011718,2]
[326841638,1715506232245,-2019.38,0.00011721,2]
[326841639,1715506232255,-2019.38,0.00011724,2]
[326841640,1715506232264,-2019.38,0.00011727,2]
[326841641,1715506232274,-2019.38,0.0001173,2]
[326841642,1715506232283,-2019.38,0.00011733,2]
[326841643,1715506232292,-2019.38,0.00011736,2]
[326841644,1715506232302,-2019.38,0.00011739,2]
[326841645,1715506232312,-2019.38,0.00011742,2]
[326841647,1715506232321,-2019.38,0.00011746,2]
[326841650,1715506232330,-2019.38,0.00011749,2]
[326841652,1715506232339,-2019.38,0.00011752,2]
[326841655,1715506232349,-2019.38,0.00011755,2]
[326841658,1715506232358,-2019.38,0.00011758,2]
[326841662,1715506232367,-2019.38,0.00011761,2]
[326841666,1715506232377,-2019.38,0.00011764,2]
[326841668,1715506232385,-2019.38,0.00011767,2]
[326841670,1715506232395,-1076.1097,0.000119,2]
[326841672,1715506232404,-11456.67376325,0.00012,2]
[326841674,1715506232413,-166.56,0.00012617,2]
[326841676,1715506232423,-1563.06983317,0.00012696,2]
[326841678,1715506232434,-1000.0,0.00012721,2]
[326841680,1715506232443,-150.0,0.00012728,2]
[326841682,1715506232452,-1500.0,0.0001273,2]
[326841684,1715506232462,-150.0,0.00012731,2]
[326841686,1715506232471,-150.0,0.00012731,2]
[326841688,1715506232480,-159.73970674,0.00012732,2]
[326841690,1715506232490,-1500.0,0.00012736,2]
[326841692,1715506232499,-150.0,0.00012737,2]
[326841694,1715506232508,-150.0,0.00012737,2]
[326841696,1715506232517,-150.0,0.00012738,2]
[326841698,1715506232527,-1500.0,0.00012739,2]
[326841700,1715506232535,-1500.0,0.00012739,2]
[326841702,1715506232544,-150.0,0.00012741,2]
[326841704,1715506232554,-150.0,0.00012743,2]
[326841706,1715506232564,-150.0,0.00012746,2]
[326841708,1715506232573,-251.79891757,0.00012748,2]
[326841710,1715506232582,-3503.24646015,0.00012751,2]
[326841712,1715506232591,-150.0,0.00012753,2]
[326841714,1715506232600,-150.0,0.00012753,2]
[326841716,1715506232609,-1500.0,0.00012755,2]
[326841718,1715506232618,-1500.0,0.00012756,2]
[326841720,1715506232627,-150.0,0.00012756,2]
[326841722,1715506232636,-150.0,0.00012756,2]
[326841724,1715506232645,-150.0,0.00012758,2]
[326841726,1715506232654,-150.0,0.00012758,2]
[326841728,1715506232664,-1500.0,0.0001276,2]
[326841730,1715506232673,-1500.0,0.00012762,2]
[326841732,1715506232682,-1500.0,0.00012763,2]
[326841734,1715506232691,-560.77764055,0.00012771,2]
[326841736,1715506232700,-150.0,0.00012773,2]
[326841738,1715506232710,-150.0,0.00012774,2]
[326841740,1715506232719,-150.0,0.00012774,2]
[326841742,1715506232727,-150.0,0.00012775,2]
[326841744,1715506232737,-1500.0,0.00012776,2]
[326841746,1715506232746,-150.0,0.00012778,2]
[326841748,1715506232755,-1500.0,0.00012779,2]
[326841750,1715506232764,-153.6,0.0001278,2]
[326841752,1715506232773,-220.0402,0.0001278,2]
[326841754,1715506232782,-150.0,0.0001278,2]
[326841756,1715506232791,-1500.0,0.0001278,2]
[326841758,1715506232800,-150.0,0.00012782,2]
[326841760,1715506232810,-1674.7609,0.00012785,2]
[326841762,1715506232820,-1500.0,0.00012786,2]
[326841764,1715506232829,-150.0,0.00012789,2]
[326841766,1715506232838,-150.0,0.00012792,2]
[326841768,1715506232848,-150.0,0.00012794,2]
[326841769,1715506232862,-1500.0,0.00012794,2]
[326841770,1715506232872,-1500.0,0.00012795,2]
[326841771,1715506232881,-150.0,0.00012798,2]
[326841772,1715506232890,-1500.0,0.00012798,2]
[326841773,1715506232901,-150.0,0.00012799,2]
[326841774,1715506232911,-150.0,0.000128,2]
[326841775,1715506232920,-150.0,0.00012805,2]
[326841776,1715506232931,-150.0,0.00012807,2]
[326841777,1715506232941,-1500.0,0.00012809,2]
[326841778,1715506232951,-150.0,0.00012811,2]
[326841779,1715506232961,-150.0,0.00012814,2]
[326841780,1715506232970,-150.0,0.00012814,2]
[326841781,1715506232979,-150.0,0.00012815,2]
[326841783,1715506232988,-150.0,0.00012817,2]
[326841784,1715506232998,-1500.0,0.00012817,2]
[326841786,1715506233008,-150.0,0.00012818,2]
[326841788,1715506233017,-1500.0,0.0001282,2]
[326841791,1715506233029,-1500.0,0.00012825,2]
[326841792,1715506233039,-150.0,0.00012827,2]
[326841794,1715506233048,-1500.0,0.00012829,2]
[326841796,1715506233058,-1500.0,0.00012834,2]
[326841799,1715506233068,-150.0,0.00012836,2]
[326841800,1715506233078,-150.0,0.00012837,2]
[326841803,1715506233087,-1500.0,0.00012837,2]
[326841805,1715506233097,-150.0,0.00012838,2]
[326841806,1715506233107,-150.0,0.00012839,2]
[326841809,1715506233116,-150.0,0.00012844,2]
[326841811,1715506233127,-150.0,0.00012846,2]
[326841812,1715506233135,-1256.9463473,0.00012846,2]
[326841815,1715506233146,-150.0,0.00012846,2]
[326841816,1715506233155,-160.98458521,0.00012846,2]
[326841818,1715506233164,-150.0,0.00012849,2]
[326841820,1715506233173,-1500.0,0.00012849,2]
[326841822,1715506233183,-1500.0,0.00012849,2]
[326841825,1715506233192,-150.0,0.0001285,2]
[326841826,1715506233201,-150.0,0.00012851,2]
[326841828,1715506233211,-150.0,0.00012855,2]
[326841830,1715506233220,-150.0,0.00012858,2]
[326841832,1715506233229,-150.0,0.00012859,2]
[326841835,1715506233239,-1500.0,0.00012861,2]
[326841836,1715506233248,-1500.0,0.00012862,2]
[326841838,1715506233257,-1500.0,0.00012863,2]
[326841841,1715506233267,-150.0,0.00012864,2]
[326841842,1715506233276,-150.0,0.00012867,2]
[326841844,1715506233285,-21336.15303944,0.00012868,2]
[326841846,1715506233295,-400.81,0.00012868,2]
[326841848,1715506233305,-150.0,0.0001287,2]
[326841851,1715506233315,-1500.0,0.00012872,2]
[326841852,1715506233323,-1310.08694479,0.00012872,2]
[326841862,1715506233401,-189.91305521,0.00012872,2]
[326841864,1715506233410,-150.0,0.00012876,2]
[326841866,1715506233420,-40.12581183,0.00012877,2]
[326841868,1715506233431,-160.05039481,0.00012877,2]
[326841870,1715506233440,-597.2279121,0.00012877,2]
[326841872,1715506233450,-216.99723947,0.00012877,2]
[326841874,1715506233459,-159.14307735,0.00012877,2]
[326841876,1715506233468,-220.0701607,0.00012877,2]
[326841878,1715506233477,-198.01200584,0.00012877,2]
[326841880,1715506233487,-267.48303809,0.00012877,2]
[326841882,1715506233495,-160.27302804,0.00012877,2]
[326841884,1715506233505,-38.43281599,0.00012877,2]
[326841889,1715506233544,-111.56718401,0.00012877,2]
[326841891,1715506233553,-155.00000001,0.00012878,2]
[326841893,1715506233562,-1932.08666471,0.00012878,2]
[326841895,1715506233571,-787.96593841,0.00012878,2]
[326841897,1715506233580,-196.13561442,0.00012878,2]
[326841899,1715506233590,-228.64758728,0.00012878,2]
[326841901,1715506233599,-150.0,0.00012878,2]
[326841903,1715506233608,-17615.82022828,0.00012878,2]
[326841905,1715506233617,-344.68046229,0.00012878,2]
[326841907,1715506233628,-298.56741175,0.00012879,2]
[326841909,1715506233637,-409.32207997,0.00012879,2]
[326841911,1715506233646,-180.00360704,0.00012879,2]
[326841913,1715506233655,-67542.98133413,0.00012879,2]
[326841915,1715506233664,-150.0,0.00012879,2]
[326841917,1715506233673,-150.0,0.00012879,2]
[326841918,1715506233682,-17615.82022825,0.0001288,2]
[326841919,1715506233691,-171.17183143,0.00012881,2]
[326841920,1715506233700,-1500.0,0.00012881,2]
[326841921,1715506233710,-150.0,0.00012882,2]
[326841922,1715506233719,-17615.82022825,0.00012882,2]
[326841923,1715506233728,-400.81,0.00012882,2]
[326841924,1715506233737,-150.0,0.00012884,2]
[326841925,1715506233746,-1500.0,0.00012884,2]
[326841926,1715506233755,-150.0,0.00012884,2]
[326841927,1715506233764,-17615.82022825,0.00012884,2]
[326841928,1715506233773,-1500.0,0.00012886,2]
[326841929,1715506233782,-17615.82022825,0.00012886,2]
[326841930,1715506233791,-150.0,0.00012888,2]
[326841931,1715506233800,-150.0,0.00012888,2]
[326841932,1715506233809,-17615.82022825,0.00012888,2]
[326841933,1715506233818,-150.0,0.00012889,2]
[326841934,1715506233827,-150.0,0.00012889,2]
[326841935,1715506233836,-150.0,0.0001289,2]
[326841936,1715506233845,-17615.82022825,0.0001289,2]
[326841937,1715506233858,-171.17183142,0.00012891,2]
[326841938,1715506233867,-17615.82022825,0.00012892,2]
[326841939,1715506233877,-22920.53,0.00012893,2]
[326841940,1715506233886,-17615.82022825,0.00012894,2]
[326841941,1715506233895,-1500.0,0.00012895,2]
[326841942,1715506233908,-200.0,0.00012896,2]
[326841943,1715506233917,-1000.0,0.00012896,2]
[326841944,1715506233926,-200.0,0.00012896,2]
[326841945,1715506233938,-500.0,0.00012896,2]
[326841946,1715506233947,-150.0,0.00012896,2]
[326841947,1715506233956,-17615.82022825,0.00012896,2]
[326841948,1715506233972,-319.97754631,0.00012898,2]
[326841949,1715506233981,-150.0,0.00012898,2]
[326841950,1715506233991,-150.0,0.00012898,2]
[326841951,1715506234001,-150.0,0.00012898,2]
[326841952,1715506234010,-150.0,0.00012898,2]
[326841953,1715506234020,-17615.82022825,0.00012898,2]
[326841954,1715506234030,-10000.0,0.000129,2]